bitfinex/quotes_SOLUSD_20241126
["timestamp","ask_amount","ask_price","bid_price","bid_amount"]
[1732611788890,27.6599479,233.19,233.11,27.6599479]
[1732611789074,27.6599479,233.19,233.12,27.6599479]
[1732611789273,27.6599479,233.2,233.12,27.6599479]
[1732611789599,27.6599479,233.18,233.1,27.6599479]
[1732611789797,23.776884,233.17,233.1,27.6599479]
[1732611789985,23.776884,233.17,233.11,27.6599479]
[1732611790193,27.6599479,233.14,233.07,27.6599479]
[1732611790374,27.6599479,233.11,233.05,75.0]
[1732611790581,23.776884,233.1,233.05,75.0]
[1732611790900,23.776884,233.08,233.05,75.0]
[1732611791275,23.776884,233.08,233.06,27.6599479]
[1732611791472,4.2899,233.11,233.07,27.6599479]
[1732611791702,23.776884,233.1,233.05,102.6599479]
[1732611792375,51.4368319,233.1,233.05,75.0]
[1732611792794,23.776884,233.1,233.05,75.0]
[1732611792974,23.776884,233.08,233.05,75.0]
[1732611793385,23.776884,233.08,233.06,27.6599479]
[1732611793582,23.776884,233.08,233.05,75.0]
[1732611793895,23.776884,233.08,233.05,102.6599479]
[1732611794090,23.776884,233.08,233.05,75.0]
[1732611794286,71.4368319,233.06,233.05,75.0]
[1732611794495,87.4710319,233.06,233.05,47.72349914]
[1732611794691,86.75932147,233.06,233.05,9.914e-05]
[1732611794894,20.0,232.95,232.83,19.5792]
[1732611795074,4.2929,232.94,232.83,15.2843]
[1732611795489,27.6599479,232.91,232.83,42.9442479]
[1732611795775,27.6599479,232.89,232.81,34.3192479]
[1732611795998,27.6599479,232.88,232.81,27.6599479]
[1732611796283,27.6599479,232.9,232.82,27.6599479]
[1732611796481,27.6599479,232.9,232.77,19.5802]
[1732611796482,4.2929,232.94,232.77,19.5802]
[1732611796690,4.2929,232.94,232.9,27.6599479]
[1732611796998,20.0,232.9,232.77,19.5802]
[1732611797701,23.776884,232.89,232.77,15.2843]
[1732611798088,20.0,232.86,232.77,15.2843]
[1732611798393,20.0,232.86,232.8,27.6599479]
[1732611798906,4.2946,232.85,232.81,27.6599479]
[1732611799087,4.2946,232.85,232.8,27.6599479]
[1732611799291,4.2946,232.85,232.77,15.2843]
[1732611799292,31.9545479,232.85,232.77,27.6599479]
[1732611799681,27.6599479,232.83,232.75,34.3192479]
[1732611800002,31.9545479,232.85,232.77,27.6599479]
[1732611800181,31.9545479,232.85,232.78,27.6599479]
[1732611800379,20.0,232.84,232.83,27.6599479]
[1732611800701,27.6599479,232.84,232.75,6.6593]
[1732611800898,4.2949,232.83,232.75,6.6593]
[1732611801094,24.2949,232.83,232.8,27.6599479]
[1732611801291,24.2949,232.83,232.79,27.6599479]
[1732611801598,24.2949,232.83,232.77,27.6599479]
[1732611801907,20.0,232.82,232.79,27.6599479]
[1732611802280,24.2949,232.83,232.78,27.6599479]
[1732611802487,20.0,232.82,232.78,27.6599479]
[1732611802791,24.2952,232.82,232.8,27.6599479]
[1732611802992,24.2952,232.82,232.79,27.6599479]
[1732611803204,4.2952,232.82,232.8,27.6599479]
[1732611803385,24.2952,232.82,232.78,27.6599479]
[1732611803580,24.2952,232.82,232.77,27.6599479]
[1732611803777,51.4368319,232.81,232.74,27.6599479]
[1732611803981,51.4368319,232.81,232.73,27.6599479]
[1732611804224,23.776884,232.81,232.75,27.6599479]
[1732611804588,23.776884,232.81,232.74,27.6599479]
[1732611804789,4.2955,232.8,232.73,27.6599479]
[1732611804998,4.2955,232.8,232.71,27.6599479]
[1732611804999,20.0,232.77,232.71,27.6599479]
[1732611805183,20.0,232.74,232.69,27.6599479]
[1732611805386,20.0,232.73,232.67,27.6599479]
[1732611805807,20.0,232.73,232.68,27.6599479]
[1732611805983,20.0,232.73,232.69,27.6599479]
[1732611806190,4.2955,232.8,232.72,27.6599479]
[1732611806398,4.2955,232.8,232.68,27.6599479]
[1732611806713,4.2955,232.8,232.77,27.6599479]
[1732611807407,4.2955,232.8,232.76,27.6599479]
[1732611807713,1.3871425,232.87,232.79,27.6599479]
[1732611807714,4.2942,232.87,232.79,27.6599479]
[1732611807898,38.3925479,232.94,232.86,27.6599479]
[1732611808099,38.3925479,232.94,232.87,27.6599479]
[1732611808313,27.6599479,232.88,232.78,15.5332]
[1732611808603,4.2927,232.95,232.78,15.5332]
[1732611808810,4.2927,232.95,232.79,23.776884]
[1732611809111,15.0207,233.01,232.81,33.776884]
[1732611809292,4.2916,233.01,232.85,20.0]
[1732611809494,27.6599479,233.0,232.92,27.6599479]
[1732611809785,27.6599479,233.0,232.93,27.6599479]
[1732611809992,10.0,233.1,232.99,27.6599479]
[1732611809993,4.2913,233.03,232.99,27.6599479]
[1732611810200,4.291,233.05,233.02,27.6599479]
[1732611810403,38.3853479,233.1,232.93,6.0456]
[1732611810612,15.99777907,233.09,232.93,6.0456]
[1732611810800,0.98227907,233.08,232.93,6.0456]
[1732611810985,4.2905,233.07,232.93,10.3385]
[1732611811186,0.98227907,233.06,232.93,10.3385]
[1732611811609,0.98227907,233.06,232.93,6.0456]
[1732611811788,27.6599479,233.03,232.95,27.6599479]
[1732611812113,27.6599479,233.03,232.96,27.6599479]
[1732611812317,0.98227907,233.06,233.02,27.6599479]
[1732611812609,0.98227907,233.06,232.96,20.0]
[1732611813188,0.98227907,233.06,232.97,4.2923]
[1732611813596,0.98227907,233.06,233.05,27.6599479]
[1732611813996,5.27297907,233.06,233.02,27.6599479]
[1732611814312,5.27297907,233.06,233.01,27.6599479]
[1732611814511,5.27297907,233.06,233.02,27.6599479]
[1732611814714,5.27297907,233.06,233.01,27.6599479]
[1732611814910,0.98227907,233.06,233.05,27.6599479]
[1732611815398,10.7191,233.23,233.06,6.5963]
[1732611815601,4.2874,233.24,233.2,27.6599479]
[1732611815900,4.2874,233.24,233.1,20.0]
[1732611816099,4.2874,233.24,233.21,27.6599479]
[1732611816295,4.2874,233.24,233.18,27.6599479]
[1732611816601,9.60988957,233.24,233.06,10.887]
[1732611816805,4.2874,233.24,233.09,20.0]
[1732611817207,20.7162,233.29,233.09,24.29]
[1732611817406,20.7162,233.29,233.09,20.0]
[1732611817722,30.7162,233.29,233.09,24.29]
[1732611818016,51.4368319,233.25,233.18,27.6599479]
[1732611818217,23.776884,233.26,233.2,27.6599479]
[1732611818515,23.776884,233.24,233.19,27.6599479]
[1732611819614,28.064084,233.25,233.19,27.6599479]
[1732611821501,28.064084,233.25,233.09,20.0]
[1732611821502,23.776884,233.21,233.16,27.6599479]
[1732611821702,24.2879,233.22,233.19,27.6599479]
[1732611822209,23.776884,233.21,233.17,27.6599479]
[1732611822413,24.2879,233.22,233.17,27.6599479]
[1732611822602,24.2879,233.22,233.16,27.6599479]
[1732611823003,24.2879,233.22,233.17,27.6599479]
[1732611823216,23.776884,233.21,233.14,27.6599479]
[1732611823516,23.776884,233.21,233.16,27.6599479]
[1732611824406,23.776884,233.19,233.16,27.6599479]
[1732611824620,23.776884,233.19,233.15,27.6599479]
[1732611824819,23.776884,233.19,233.16,27.6599479]
[1732611825307,28.064784,233.21,233.15,27.6599479]
[1732611825613,20.0,233.18,233.11,27.6599479]
[1732611825805,27.6599479,233.18,233.11,27.6599479]
[1732611826001,20.0,233.14,233.08,27.6599479]
[1732611826407,51.4368319,233.1,233.02,27.6599479]
[1732611826603,23.776884,233.1,233.04,27.6599479]
[1732611826798,23.776884,233.1,233.01,15.3715]
[1732611826799,20.0,233.07,233.02,27.6599479]
[1732611827021,20.0,233.07,233.01,15.3715]
[1732611827315,24.2906,233.07,233.02,27.6599479]
[1732611827817,23.776884,233.06,233.02,27.6599479]
[1732611828122,4.2906,233.07,233.02,27.6599479]
[1732611828327,27.6599479,233.05,232.94,20.0449]
[1732611828530,20.0,232.97,232.94,15.7521]
[1732611828732,20.0,232.97,232.9,27.6599479]
[1732611829617,31.9524479,232.96,232.88,27.6599479]
[1732611829819,51.4368319,232.92,232.84,27.6599479]
[1732611830194,20.0,232.91,232.89,27.6599479]
[1732611830398,20.0,232.91,232.8,27.6599479]
[1732611830399,20.0,232.91,232.87,27.6599479]
[1732611830819,20.0,232.92,232.9,27.6599479]
[1732611831023,24.2925,232.96,232.91,27.6599479]
[1732611831199,4.2925,232.96,232.91,27.6599479]
[1732611831396,20.0,232.97,232.95,27.6599479]
[1732611831623,4.2912,233.03,232.96,27.6599479]
[1732611831827,4.2912,233.03,232.88,4.2939]
[1732611831828,27.6599479,233.02,232.94,27.6599479]
[1732611832004,15.0194,233.03,232.93,27.6599479]
[1732611832204,27.6599479,233.0,232.93,27.6599479]
[1732611832519,27.6599479,233.02,232.94,27.6599479]
[1732611832720,4.2912,233.03,232.84,4.2947]
[1732611832721,27.6599479,233.0,232.93,27.6599479]
[1732611833127,27.6599479,233.01,232.94,27.6599479]
[1732611833622,27.6599479,233.0,232.93,27.6599479]
[1732611833825,23.776884,232.98,232.92,27.6599479]
[1732611834913,4.2923,232.97,232.91,27.6599479]
[1732611835109,4.2923,232.97,232.92,27.6599479]
[1732611835525,4.2921,232.99,232.93,27.6599479]
[1732611835730,20.0,232.97,232.93,27.6599479]
[1732611835927,20.0,232.97,232.92,27.6599479]
[1732611836111,20.0,232.97,232.93,27.6599479]
[1732611836515,20.0,232.97,232.91,27.6599479]
[1732611837127,4.2925,232.96,232.91,27.6599479]
[1732611837505,31.9524479,232.96,232.88,27.6599479]
[1732611837711,27.6599479,232.93,232.86,27.6599479]
[1732611838032,27.6599479,232.9,232.83,27.6599479]
[1732611838537,27.6599479,232.9,232.79,4.2955]
[1732611838538,27.6599479,232.92,232.84,27.6599479]
[1732611838831,27.6599479,232.93,232.86,27.6599479]
[1732611839203,4.2933,232.92,232.86,27.6599479]
[1732611839402,4.2933,232.92,232.85,27.6599479]
[1732611839819,4.2933,232.92,232.87,27.6599479]
[1732611840530,4.2933,232.92,232.85,27.6599479]
[1732611840738,4.293,232.94,232.89,27.6599479]
[1732611841033,24.293,232.94,232.89,27.6599479]
[1732611841529,20.0,232.98,232.91,27.6599479]
[1732611841709,20.0,232.96,232.91,27.6599479]
[1732611841904,24.2922,232.98,232.81,23.776884]
[1732611841905,4.2922,232.98,232.94,27.6599479]
[1732611842108,4.2922,232.98,232.92,27.6599479]
[1732611842306,27.6599479,232.97,232.89,27.6599479]
[1732611842505,31.9526479,232.95,232.88,27.6599479]
[1732611842718,27.6599479,232.92,232.85,27.6599479]
[1732611842922,4.2927,232.95,232.82,4.2951]
[1732611843106,31.9526479,232.95,232.88,27.6599479]
[1732611843308,31.9526479,232.95,232.82,4.2951]
[1732611843309,20.0,232.93,232.9,27.6599479]
[1732611843512,4.2909,233.05,232.92,27.6599479]
[1732611843809,27.6599479,233.03,232.96,27.6599479]
[1732611844016,27.6599479,233.01,232.94,27.6599479]
[1732611844225,15.0182,233.05,232.91,15.7521]
[1732611844419,27.6599479,233.03,232.96,27.6599479]
[1732611844637,27.6599479,233.0,232.92,27.6599479]
[1732611844812,27.6599479,232.94,232.86,15.7521]
[1732611845011,10.0,233.02,232.84,6.633]
[1732611845012,20.0,232.97,232.84,6.633]
[1732611845317,20.0,232.97,232.84,10.9277]
[1732611845723,20.0,232.99,232.84,10.9277]
[1732611845938,10.0,233.03,232.84,10.9277]
[1732611845939,20.0,233.0,232.84,10.9277]
[1732611846152,20.0,233.01,232.85,23.776884]
[1732611846439,4.2911,233.04,232.99,27.6599479]
[1732611846642,27.6599479,233.0,232.89,27.6599479]
[1732611846818,4.2914,233.02,232.87,15.7521]
[1732611847011,4.2914,233.02,232.87,20.0461]
[1732611847212,4.2914,233.02,232.88,23.776884]
[1732611847941,43.3,233.06,232.91,20.0]
[1732611848148,4.2908,233.06,233.02,27.6599479]
[1732611848523,4.2908,233.06,232.92,51.4368319]
[1732611848524,31.9507479,233.06,232.98,27.6599479]
[1732611848830,31.9507479,233.06,232.99,27.6599479]
[1732611849030,4.2908,233.06,233.03,27.6599479]
[1732611849339,4.2901,233.09,232.96,23.776884]
[1732611849521,6.9622,233.13,232.97,15.7521]
[1732611849522,4.2898,233.11,232.97,15.7521]
[1732611849846,4.2898,233.11,232.98,23.776884]
[1732611850140,31.9495479,233.13,233.05,27.6599479]
[1732611850331,31.9495479,233.13,233.06,27.6599479]
[1732611850530,4.2896,233.13,233.06,27.6599479]
[1732611851124,31.9495479,233.13,233.06,27.6599479]
[1732611851526,7.51846762,233.15,233.11,27.6599479]
[1732611851740,7.51846762,233.15,233.14,27.6599479]
[1732611852423,7.51846762,233.15,233.11,15.7521]
[1732611852737,4.2888,233.17,233.11,15.7521]
[1732611853120,20.0,233.21,233.07,23.776884]
[1732611853321,24.2884,233.19,233.07,23.776884]
[1732611853627,24.2884,233.19,233.14,27.6599479]
[1732611854140,27.6599479,233.18,233.11,27.6599479]
[1732611854342,4.2884,233.19,233.15,27.6599479]
[1732611854718,27.6599479,233.22,233.15,27.6599479]
[1732611855028,4.2879,233.21,233.14,27.6599479]
[1732611855435,4.2879,233.21,233.15,27.6599479]
[1732611855632,4.2879,233.21,233.16,27.6599479]
[1732611855840,4.287,233.27,233.2,27.6599479]
[1732611856147,10.70052327,233.28,233.24,27.6599479]
[1732611856319,14.98722327,233.28,233.24,27.6599479]
[1732611856519,14.98722327,233.28,233.23,27.6599479]
[1732611856764,14.98722327,233.28,233.21,27.6599479]
[1732611857039,27.6599479,233.26,233.19,27.6599479]
[1732611857217,27.6599479,233.25,233.18,27.6599479]
[1732611857421,14.98722327,233.28,233.09,4.2901]
[1732611857422,27.6599479,233.27,233.2,27.6599479]
[1732611857729,20.0,233.24,233.19,27.6599479]
[1732611858035,20.0,233.24,233.2,27.6599479]
[1732611858238,20.0,233.24,233.1,23.776884]
[1732611858239,27.6599479,233.24,233.16,27.6599479]
[1732611858734,20.0,233.23,233.19,27.6599479]
[1732611858938,4.2877,233.22,233.18,27.6599479]
[1732611859132,20.0,233.23,233.1,28.066784]
[1732611859133,20.0,233.23,233.2,27.6599479]
[1732611859338,10.69932034,233.29,233.22,27.6599479]
[1732611859339,20.0,233.26,233.22,27.6599479]
[1732611859518,20.0,233.26,233.25,27.6599479]
[1732611859727,20.0,233.26,233.24,27.6599479]
[1732611859944,4.2866,233.28,233.23,27.6599479]
[1732611860147,38.35926824,233.29,233.21,27.6599479]
[1732611860630,27.6599479,233.28,233.2,27.6599479]
[1732611861028,4.2868,233.27,233.2,27.6599479]
[1732611861232,4.2868,233.27,233.23,27.6599479]
[1732611861626,10.69932034,233.29,233.26,27.6599479]
[1732611861829,10.69932034,233.29,233.27,27.6599479]
[1732611862046,10.69932034,233.29,233.28,27.6599479]
[1732611863246,10.69932034,233.29,233.26,27.6599479]
[1732611863419,10.69932034,233.29,233.27,27.6599479]
[1732611863619,14.98582034,233.29,233.25,27.6599479]
[1732611864054,14.98582034,233.29,233.26,27.6599479]
[1732611864349,14.98582034,233.29,233.28,27.6599479]
[1732611864531,4.2852,233.36,233.28,27.6599479]
[1732611864729,4.2852,233.36,233.31,27.6599479]
[1732611864932,20.0,233.34,233.3,27.6599479]
[1732611865138,24.2856,233.34,233.31,27.6599479]
[1732611865430,24.2856,233.34,233.3,27.6599479]
[1732611865736,24.2856,233.34,233.29,27.6599479]
[1732611865737,20.0,233.33,233.29,27.6599479]
[1732611866239,20.0,233.33,233.28,27.6599479]
[1732611866449,20.0,233.33,233.29,27.6599479]
[1732611866631,20.0,233.33,233.28,27.6599479]
[1732611867151,24.2858,233.33,233.28,27.6599479]
[1732611867442,20.0,233.32,233.27,27.6599479]
[1732611867648,20.0,233.32,233.28,27.6599479]
[1732611867943,20.0,233.32,233.21,28.064784]
[1732611867944,20.0,233.32,233.31,27.6599479]
[1732611868146,20.0,233.35,233.3,27.6599479]
[1732611868443,24.2856,233.34,233.3,27.6599479]
[1732611868841,4.2856,233.34,233.31,27.6599479]
[1732611869346,20.0,233.33,233.28,27.6599479]
[1732611869551,4.2856,233.34,233.29,27.6599479]
[1732611869736,24.2856,233.34,233.3,27.6599479]
[1732611870137,24.2856,233.34,233.31,27.6599479]
[1732611870440,27.6599479,233.34,233.26,27.6599479]
[1732611870639,27.6599479,233.33,233.26,27.6599479]
[1732611870845,20.0,233.35,233.26,27.6599479]
[1732611870846,27.6599479,233.34,233.26,27.6599479]
[1732611871066,27.6599479,233.34,233.27,27.6599479]
[1732611871427,47.6599479,233.33,233.26,27.6599479]
[1732611871724,20.0,233.32,233.27,27.6599479]
[1732611872157,20.0,233.32,233.28,27.6599479]
[1732611872325,0.4972288,233.37,233.32,39.807084]
[1732611872647,0.4972288,233.37,233.36,27.6599479]
[1732611873629,0.4972288,233.37,233.36,51.4368319]
[1732611874456,0.4972288,233.37,233.36,27.6599479]
[1732611876045,0.4972288,233.37,233.35,27.6599479]
[1732611876338,0.4972288,233.37,233.36,27.6599479]
[1732611877245,0.4972288,233.37,233.36,51.4368319]
[1732611878030,0.4972288,233.37,233.36,27.6599479]
[1732611878454,0.4972288,233.37,233.36,51.4368319]
[1732611879286,27.6599479,233.52,233.37,23.776884]
[1732611879437,31.9421479,233.52,233.45,27.6599479]
[1732611879633,27.6599479,233.51,233.44,27.6599479]
[1732611879839,4.2822,233.52,233.46,27.6599479]
[1732611880160,4.2822,233.52,233.47,27.6599479]
[1732611880340,4.2822,233.52,233.49,27.6599479]
[1732611880648,5.55884638,233.54,233.51,27.6599479]
[1732611880837,5.55884638,233.54,233.53,27.6599479]
[1732611881232,5.55884638,233.54,233.47,4.2831]
[1732611881233,5.55884638,233.54,233.52,27.6599479]
[1732611881431,5.55884638,233.54,233.53,27.6599479]
[1732611881739,5.55884638,233.54,233.5,27.6599479]
[1732611881938,5.55884638,233.54,233.53,27.6599479]
[1732611882453,0.4972288,233.6,233.47,20.0]
[1732611882937,0.4972288,233.6,233.48,20.0]
[1732611883137,0.4972288,233.6,233.46,4.2832]
[1732611883555,20.0,233.58,233.54,27.6599479]
[1732611884062,4.281,233.59,233.55,27.6599479]
[1732611884358,0.4972288,233.6,233.55,27.6599479]
[1732611884557,4.7780288,233.6,233.53,27.6599479]
[1732611884758,27.6599479,233.59,233.51,27.6599479]
[1732611884947,32.4379767,233.6,233.53,27.6599479]
[1732611885461,4.7780288,233.6,233.54,51.4368319]
[1732611885763,0.4972288,233.6,233.58,27.6599479]
[1732611885943,0.4972288,233.6,233.59,23.776884]
[1732611886145,0.4972288,233.6,233.49,20.0]
[1732611886146,4.7780288,233.6,233.55,27.6599479]
[1732611886864,27.6599479,233.59,233.44,10.0]
[1732611887066,27.6599479,233.59,233.52,27.6599479]
[1732611887362,4.7780288,233.6,233.55,27.6599479]
[1732611887544,4.7780288,233.6,233.54,27.6599479]
[1732611887860,4.7780288,233.6,233.57,27.6599479]
[1732611887861,0.4972288,233.6,233.57,27.6599479]
[1732611888042,0.4972288,233.6,233.59,27.6599479]
[1732611888564,0.4972288,233.6,233.59,51.4368319]
[1732611888752,0.4972288,233.6,233.58,27.6599479]
[1732611888952,0.4972288,233.6,233.57,23.776884]
[1732611889145,0.4972288,233.6,233.59,27.6599479]
[1732611889347,0.4972288,233.6,233.58,27.6599479]
[1732611889540,0.4972288,233.6,233.59,51.4368319]
[1732611896067,4.2783,233.74,233.6,28.057684]
[1732611896242,4.2783,233.74,233.7,27.6599479]
[1732611896446,4.2778,233.76,233.7,27.6599479]
[1732611896973,31.9377479,233.76,233.68,27.6599479]
[1732611897551,27.6599479,233.74,233.67,27.6599479]
[1732611897755,27.6599479,233.75,233.67,27.6599479]
[1732611898049,4.2778,233.76,233.7,27.6599479]
[1732611899172,4.2778,233.76,233.71,27.6599479]
[1732611899373,4.2778,233.76,233.7,27.6599479]
[1732611899551,4.2778,233.76,233.71,27.6599479]
[1732611899751,4.2778,233.76,233.73,27.6599479]
[1732611900049,27.6599479,233.8,233.73,27.6599479]
[1732611900850,17.97359782,233.86,233.7,27.6599479]
[1732611900851,27.6599479,233.78,233.7,27.6599479]
[1732611901058,27.6599479,233.76,233.69,27.6599479]
[1732611901273,31.9372479,233.79,233.72,27.6599479]
[1732611901456,4.2773,233.79,233.73,27.6599479]
[1732611902077,31.9372479,233.79,233.72,27.6599479]
[1732611902448,4.2773,233.79,233.78,27.6599479]
[1732611902670,4.2769,233.81,233.78,27.6599479]
[1732611902969,0.4972288,233.83,233.8,27.6599479]
[1732611903178,0.4972288,233.83,233.82,27.6599479]
[1732611904252,0.4972288,233.83,233.82,51.4368319]
[1732611909474,4.2731,234.02,233.84,10.0]
[1732611909680,4.2731,234.02,233.93,27.6599479]
[1732611909681,27.6599479,234.01,233.93,27.6599479]
[1732611909855,27.6599479,233.99,233.91,27.6599479]
[1732611910058,27.6599479,234.0,233.93,27.6599479]
[1732611910253,31.9330479,234.02,233.95,27.6599479]
[1732611910678,4.2731,234.02,233.96,27.6599479]
[1732611910881,4.2731,234.02,233.97,27.6599479]
[1732611911058,0.4972288,234.06,234.01,27.6599479]
[1732611911265,0.4972288,234.06,234.0,27.6599479]
[1732611911665,0.4972288,234.06,233.99,27.6599479]
[1732611911666,28.1571767,234.06,233.99,27.6599479]
[1732611912072,0.4972288,234.06,234.0,27.6599479]
[1732611912277,32.4296767,234.06,233.99,27.6599479]
[1732611912862,27.6599479,234.03,233.95,27.6599479]
[1732611913081,15.4507288,234.06,233.97,27.6599479]
[1732611913082,27.6599479,234.04,233.97,27.6599479]
[1732611913371,27.6599479,234.02,233.95,27.6599479]
[1732611913761,32.4296767,234.06,233.99,27.6599479]
[1732611913976,0.4972288,234.06,233.99,27.6599479]
[1732611914160,0.4972288,234.06,233.94,19.6292]
[1732611914161,0.4972288,234.06,234.02,27.6599479]
[1732611914362,0.4972288,234.06,234.03,27.6599479]
[1732611914570,0.4972288,234.06,234.04,27.6599479]
[1732611916277,0.4972288,234.06,234.05,27.6599479]
[1732611918182,0.4972288,234.06,234.01,27.6599479]
[1732611918387,0.4972288,234.06,234.03,27.6599479]
[1732611918691,0.4972288,234.06,234.05,27.6599479]
[1732611918870,0.4972288,234.06,234.05,51.4368319]
[1732611919067,0.4972288,234.06,234.05,42.9457479]
[1732611919364,0.4972288,234.06,234.05,76.7226319]
[1732611919968,0.4972288,234.06,234.05,66.7226319]
[1732611920167,4.27,234.19,234.08,20.0]
[1732611920364,4.27,234.19,234.06,28.049284]
[1732611920365,4.27,234.19,234.15,27.6599479]
[1732611920564,4.27,234.19,234.16,27.6599479]
[1732611920868,4.2693,234.23,234.16,27.6599479]
[1732611921189,4.2693,234.23,234.18,27.6599479]
[1732611921370,4.2693,234.23,234.2,27.6599479]
[1732611921564,4.2693,234.23,234.12,27.6599479]
[1732611921565,4.2693,234.23,234.19,27.6599479]
[1732611921766,4.2693,234.23,234.21,27.6599479]
[1732611921964,4.2683,234.28,234.13,6.1894]
[1732611922166,4.2683,234.28,234.14,23.776884]
[1732611922790,4.2683,234.28,234.13,6.1894]
[1732611923291,27.6599479,234.25,234.18,27.6599479]
[1732611923664,27.6599479,234.27,234.2,27.6599479]
[1732611924491,27.6599479,234.22,234.15,27.6599479]
[1732611924792,14.9406,234.26,234.2,27.6599479]
[1732611925288,14.9406,234.26,234.12,27.6599479]
[1732611925289,4.2687,234.26,234.22,27.6599479]
[1732611925669,4.2687,234.26,234.21,27.6599479]
[1732611926093,4.2687,234.26,234.2,27.6599479]
[1732611926594,31.9286479,234.26,234.18,27.6599479]
[1732611926774,31.9286479,234.26,234.15,27.6599479]
[1732611926775,27.6599479,234.22,234.15,27.6599479]
[1732611926972,27.6599479,234.22,234.14,27.6599479]
[1732611927195,27.6599479,234.22,234.15,27.6599479]
[1732611927892,27.6599479,234.22,234.14,27.6599479]
[1732611928190,27.6599479,234.24,234.17,27.6599479]
[1732611928397,14.9406,234.26,234.2,27.6599479]
[1732611928585,27.6599479,234.24,234.17,27.6599479]
[1732611929092,20.0,234.23,234.08,6.1894]
[1732611930186,47.6599479,234.23,234.16,27.6599479]
[1732611930392,20.0,234.23,234.17,27.6599479]
[1732611930580,4.2694,234.22,234.15,27.6599479]
[1732611930788,27.6599479,234.17,234.1,27.6599479]
[1732611931185,27.6599479,234.18,234.11,27.6599479]
[1732611931494,27.6599479,234.19,234.12,27.6599479]
[1732611932096,27.6599479,234.18,234.11,27.6599479]
[1732611932294,4.2704,234.17,234.11,27.6599479]
[1732611932470,4.2704,234.17,234.12,27.6599479]
[1732611933276,27.6599479,234.16,234.09,27.6599479]
[1732611933475,27.6599479,234.13,234.06,27.6599479]
[1732611933895,27.6599479,234.15,234.08,27.6599479]
[1732611934099,27.6599479,234.14,234.07,27.6599479]
[1732611934475,4.2711,234.13,234.02,6.1894]
[1732611934679,27.6599479,234.09,234.02,27.6599479]
[1732611934876,27.6599479,234.08,234.02,27.6599479]
[1732611935078,4.2711,234.13,234.07,27.6599479]
[1732611935291,4.2696,234.21,234.0,10.0]
[1732611935593,4.2696,234.21,234.01,10.0]
[1732611935993,4.2696,234.21,234.02,20.0]
[1732611936195,4.2696,234.21,234.16,27.6599479]
[1732611936579,27.6599479,234.2,234.12,27.6599479]
[1732611936986,31.9295479,234.21,234.13,27.6599479]
[1732611937303,4.2696,234.21,234.16,27.6599479]
[1732611937603,4.2696,234.21,234.17,27.6599479]
[1732611937811,4.2696,234.21,234.18,27.6599479]
[1732611937985,4.2696,234.21,234.16,27.6599479]
[1732611938492,4.2696,234.21,234.15,27.6599479]
[1732611938888,4.2696,234.21,234.16,27.6599479]
[1732611940091,27.6599479,234.22,234.15,27.6599479]
[1732611940993,27.6599479,234.23,234.16,27.6599479]
[1732611941188,4.2694,234.22,234.16,27.6599479]
[1732611941385,27.6599479,234.18,234.08,27.6599479]
[1732611941604,27.6599479,234.15,234.08,27.6599479]
[1732611941791,27.6599479,234.18,234.11,27.6599479]
[1732611941986,27.6599479,234.17,234.09,27.6599479]
[1732611942281,27.6599479,234.13,234.05,27.6599479]
[1732611942484,5.9803,234.15,234.01,15.7554]
[1732611942783,27.6599479,234.14,234.07,27.6599479]
[1732611943089,27.6599479,234.18,234.11,27.6599479]
[1732611943411,27.6599479,234.17,234.09,27.6599479]
[1732611943801,27.6599479,234.18,234.1,27.6599479]
[1732611944408,4.2704,234.17,234.1,27.6599479]
[1732611944709,38.3340479,234.21,234.14,27.6599479]
[1732611944893,38.3340479,234.21,234.13,27.6599479]
[1732611944894,4.2701,234.19,234.13,27.6599479]
[1732611947479,31.9300479,234.19,234.11,27.6599479]
[1732611948397,31.9300479,234.19,234.09,27.6599479]
[1732611948398,27.6599479,234.17,234.09,27.6599479]
[1732611948803,27.6599479,234.12,234.05,27.6599479]
[1732611949311,27.6599479,234.13,234.05,27.6599479]
[1732611949480,4.2713,234.12,234.06,27.6599479]
[1732611950306,27.6599479,234.09,234.02,27.6599479]
[1732611950486,27.6599479,234.1,234.03,27.6599479]
[1732611951089,27.6599479,234.09,234.01,43.4153479]
[1732611951402,4.2718,234.09,234.03,27.6599479]
[1732611951600,4.2718,234.09,234.01,15.7554]
[1732611951601,31.9317479,234.09,234.01,43.4153479]
[1732611951796,4.2718,234.09,234.03,27.6599479]